[Event "2nd Bieszczady Chess-ch B 2022"]
[Site "Bystre"]
[Date "2022.07.23"]
[Round "8.11"]
[White "Tymrakiewicz, Marianna"]
[Black "Medrygal, Rafal"]
[Result "1-0"]
[ECO "C50"]
[WhiteElo "1819"]
[BlackElo "1365"]
[Annotator "NA RC COMBH"]
[PlyCount "69"]
[EventDate "2022.07.17"]
[EventCountry "POL"]
[SourceTitle "playchess.com"]
[Source "ChessBase"]
[SourceQuality "1"]
[TimeControl "5400+30"]

1. e4 {[%emt 0:00:02]} e5 {[%emt 0:00:10]} 2. Nf3 {[%emt 0:00:12]} Nc6 {[%emt 0:00:17]} 3. Bc4 {[%emt 0:00:32]} Bc5 {[%emt 0:00:36]} 4. O-O {[%emt 0:00:37]} Nf6 {[%emt 0:01:08]} 5. d3 {[%emt 0:05:23]} d6 {[%emt 0:02:36]} 6. h3 {[%emt 0:02:45]} Ne7 {[%emt 0:05:44]} 7. c3 {[%emt 0:10:42]} Ng6 {[%emt 0:04:05]} 8. d4 {[%emt 0:01:13]} exd4 {[%emt 0:00:52]} 9. cxd4 {[%emt 0:00:05]} Bb6 {[%emt 0:00:09]} 10. Qb3 {[%emt 0:01:34]} O-O {[%emt 0:00:51]} 11. Nc3 {[%emt 0:01:49]} Qe7 {[%emt 0:04:02]} 12. Bg5 {[%emt 0:04:10]} h6 {[%emt 0:00:59]} 13. Nd5 {[%emt 0:00:43]} Qxe4 {[%emt 0:11:43]} 14. Bxf6 {[%emt 0:04:05]} c6 {[%emt 0:04:07]} 15. Nxb6 {[%emt 0:05:45]} axb6 {[%emt 0:11:46]} 16. Bd3 {[%emt 0:09:20]} Qf4 {[%emt 0:02:20]} 17. Bxg6 {[%emt 0:01:24]} Qxf6 {[%emt 0:00:31]} 18. Bc2 {[%emt 0:00:43]} b5 {[%emt 0:00:43]} 19. Qd3 {[%emt 0:00:21]} g6 {[%emt 0:00:18]} 20. Rfe1 {[%emt 0:00:49]} Bf5 {[%emt 0:03:20]} 21. Qc3 {[%emt 0:01:29]} Be6 {[%emt 0:01:15]} 22. Bb3 {[%emt 0:03:47]} d5 {[%emt 0:01:28]} 23. Ne5 {[%emt 0:00:44]} Kg7 {[%emt 0:04:34]} 24. Bc2 {[%emt 0:00:38]} Qg5 {[%emt 0:01:11]} 25. Nxg6 {[%emt 0:08:48]} Bxh3 {[%emt 0:00:56]} 26. Qxh3 {[%emt 0:00:27]} fxg6 {[%emt 0:00:09]} 27. Re6 {[%emt 0:02:49]} Rf6 {[%emt 0:05:13]} 28. Rxf6 {[%emt 0:00:13]} Qxf6 {[%emt 0:00:42]} 29. Re1 {[%emt 0:02:47]} Rf8 {[%emt 0:01:56]} 30. Qg3 {[%emt 0:04:22]} Kh7 {[%emt 0:01:33]} 31. Re5 {[%emt 0:01:25]} Rf7 {[%emt 0:01:29]} 32. Qe3 {[%emt 0:00:34]} Rg7 {[%emt 0:01:27]} 33. Rh5 {[%emt 0:00:29]} Re7 {[%emt 0:02:04]} 34. Qxh6+ {[%emt 0:02:24]} Kg8 {[%emt 0:00:24]} 35. Re5 {[%emt 0:00:24]} 1-0

[Event "2nd Bieszczady Chess-ch B 2022"]
[Site "Bystre"]
[Date "2022.07.24"]
[Round "9.1"]
[White "Kusiak, Mateusz"]
[Black "Kulig, Pawel"]
[Result "0-1"]
[ECO "B36"]
[WhiteElo "1693"]
[BlackElo "1720"]
[Annotator "NA RC COMBH"]
[PlyCount "58"]
[EventDate "2022.07.17"]
[EventCountry "POL"]
[SourceTitle "playchess.com"]
[Source "ChessBase"]
[SourceQuality "1"]
[TimeControl "5400+30"]

1. e4 {[%emt 0:03:05]} c5 {[%emt 0:00:09]} 2. Nf3 {[%emt 0:00:11]} g6 {[%emt 0:00:07]} 3. d4 {[%emt 0:00:42]} cxd4 {[%emt 0:00:06]} 4. Nxd4 {[%emt 0:00:13]} Nc6 {[%emt 0:00:06]} 5. c4 {[%emt 0:00:06]} Nf6 {[%emt 0:01:04]} 6. Nc3 {[%emt 0:00:05]} d6 {[%emt 0:00:23]} 7. Be3 {[%emt 0:00:06]} Ng4 {[%emt 0:00:16]} 8. Bg5 {[%emt 0:00:08]} Qb6 {[%emt 0:00:28]} 9. Be3 {[%emt 0:16:07]} Nxe3 {[%emt 0:00:09]} 10. fxe3 {[%emt 0:00:03]} Bh6 {[%emt 0:01:22]} 11. Qd2 {[%emt 0:05:01]} Bxe3 {[%emt 0:07:21]} 12. Qxe3 {[%emt 0:00:18]} Nxd4 {[%emt 0:00:58]} 13. Qd2 {[%emt 0:01:01]} Nc6 {[%emt 0:01:29]} 14. Nd5 {[%emt 0:00:45]} Qd8 {[%emt 0:00:09]} 15. Be2 {[%emt 0:01:42]} O-O {[%emt 0:01:22]} 16. O-O-O {[%emt 0:06:41]} Ne5 {[%emt 0:01:43]} 17. h4 {[%emt 0:46:18]} f6 {[%emt 0:01:15]} 18. Rdg1 {[%emt 0:00:49]} Be6 {[%emt 0:15:17]} 19. Kb1 {[%emt 0:04:06]} Rc8 {[%emt 0:01:25]} 20. Ne3 {[%emt 0:00:41]} Qb6 {[%emt 0:02:56]} 21. g4 {[%emt 0:00:51]} a5 {[%emt 0:08:35]} 22. g5 {[%emt 0:00:27]} Qb4 {[%emt 0:00:38]} 23. Qxb4 {[%emt 0:02:08]} axb4 {[%emt 0:00:06]} 24. b3 {[%emt 0:06:51]} fxg5 {[%emt 0:02:06]} 25. hxg5 {[%emt 0:00:58]} Rf4 {[%emt 0:01:32]} 26. Nd5 {[%emt 0:01:57]} Bxd5 {[%emt 0:01:07]} 27. exd5 {[%emt 0:00:05]} Rf2 {[%emt 0:00:29]} 28. Bd1 {[%emt 0:00:40]} b5 {[%emt 0:01:13]} 29. cxb5 {[%emt 0:01:27]} Nd3 {[%emt 0:00:11]} 0-1

[Event "2nd Bieszczady Chess-ch B 2022"]
[Site "Bystre"]
[Date "2022.07.24"]
[Round "9.2"]
[White "Gluch, Pawel"]
[Black "Tokarz, Izabela"]
[Result "1-0"]
[ECO "B20"]
[WhiteElo "1663"]
[BlackElo "1694"]
[Annotator "NA RC COMBH"]
[PlyCount "65"]
[EventDate "2022.07.17"]
[EventCountry "POL"]
[SourceTitle "playchess.com"]
[Source "ChessBase"]
[SourceQuality "1"]
[TimeControl "5400+30"]

1. e4 {[%emt 0:00:06]} c5 {[%emt 0:00:02]} 2. Be2 {[%emt 0:00:04]} Nc6 {[%emt 0:00:04]} 3. f4 {[%emt 0:00:09]} e6 {[%emt 0:00:02]} 4. d3 {[%emt 0:00:08]} d5 {[%emt 0:00:20]} 5. Nf3 {[%emt 0:00:05]} Be7 {[%emt 0:01:50]} 6. O-O {[%emt 0:01:27]} b6 {[%emt 0:02:07]} 7. c3 {[%emt 0:00:22]} d4 {[%emt 0:00:20]} 8. Qe1 {[%emt 0:01:03]} Bb7 {[%emt 0:00:19]} 9. Qg3 {[%emt 0:00:09]} g6 {[%emt 0:04:18]} 10. Na3 {[%emt 0:01:42]} f5 {[%emt 0:12:01]} 11. Nc4 {[%emt 0:04:10]} fxe4 {[%emt 0:05:29]} 12. dxe4 {[%emt 0:00:31]} d3 {[%emt 0:00:22]} 13. Rd1 {[%emt 0:01:22]} b5 {[%emt 0:08:22]} 14. Rxd3 {[%emt 0:07:29]} Qc7 {[%emt 0:00:06]} 15. Ne3 {[%emt 0:04:27]} Na5 {[%emt 0:01:01]} 16. Rd1 {[%emt 0:02:19]} Qb6 {[%emt 0:06:37]} 17. e5 {[%emt 0:00:51]} Nh6 {[%emt 0:01:15]} 18. Qh3 {[%emt 0:07:05]} Nf5 {[%emt 0:00:13]} 19. Nxf5 {[%emt 0:00:09]} exf5 {[%emt 0:00:48]} 20. Be3 {[%emt 0:02:46]} Qc6 {[%emt 0:03:28]} 21. b3 {[%emt 0:12:39]} a6 {[%emt 0:00:44]} 22. Qg3 {[%emt 0:02:00]} O-O {[%emt 0:16:34]} 23. Rac1 {[%emt 0:00:21]} Qc7 {[%emt 0:01:16]} 24. Ng5 {[%emt 0:06:18]} Bxg5 {[%emt 0:01:35]} 25. Qxg5 {[%emt 0:00:11]} Kg7 {[%emt 0:03:09]} 26. Rd6 {[%emt 0:01:15]} Rad8 {[%emt 0:01:57]} 27. Rcd1 {[%emt 0:00:07]} Rxd6 {[%emt 0:00:14]} 28. Rxd6 {[%emt 0:00:30]} Rf7 {[%emt 0:01:43]} 29. h4 {[%emt 0:04:17]} Nc6 {[%emt 0:07:33]} 30. Bxc5 {[%emt 0:03:36]} Ne7 {[%emt 0:00:07]} 31. Bd4 {[%emt 0:00:44]} Kg8 {[%emt 0:00:41]} 32. h5 {[%emt 0:10:12]} Rg7 {[%emt 0:01:06]} 33. Bb6 {[%emt 0:03:33]} 1-0

[Event "2nd Bieszczady Chess-ch B 2022"]
[Site "Bystre"]
[Date "2022.07.24"]
[Round "9.3"]
[White "Biesiadecki, Adam"]
[Black "Giefert, Sara"]
[Result "0-1"]
[ECO "C41"]
[WhiteElo "1776"]
[BlackElo "1692"]
[Annotator "NA RC COMBH"]
[PlyCount "128"]
[EventDate "2022.07.17"]
[EventCountry "POL"]
[SourceTitle "playchess.com"]
[Source "ChessBase"]
[SourceQuality "1"]
[TimeControl "5400+30"]

1. d4 {[%emt 0:00:02]} Nf6 {[%emt 0:00:14]} 2. Nc3 {[%emt 0:00:06]} d6 {[%emt 0:00:38]} 3. e4 {[%emt 0:00:15]} e5 {[%emt 0:00:10]} 4. Nf3 {[%emt 0:00:07]} Nbd7 {[%emt 0:00:24]} 5. g4 {[%emt 0:00:05]} h6 {[%emt 0:02:29]} 6. Rg1 {[%emt 0:01:27]} exd4 {[%emt 0:02:38]} 7. Qxd4 {[%emt 0:03:06]} Nc5 {[%emt 0:01:54]} 8. h3 {[%emt 0:09:32]} Bd7 {[%emt 0:05:16]} 9. Bc4 {[%emt 0:02:53]} Qe7 {[%emt 0:23:22]} 10. Bf4 {[%emt 0:02:41]} g5 {[%emt 0:02:35]} 11. Bh2 {[%emt 0:03:05]} Bc6 {[%emt 0:03:52]} 12. O-O-O {[%emt 0:00:38]} O-O-O {[%emt 0:03:25]} 13. Bd5 {[%emt 0:06:47]} Bxd5 {[%emt 0:03:55]} 14. Nxd5 {[%emt 0:01:11]} Nxd5 {[%emt 0:00:05]} 15. Qxh8 {[%emt 0:02:03]} Qxe4 {[%emt 0:02:03]} 16. Qd4 {[%emt 0:02:23]} Qxf3 {[%emt 0:03:10]} 17. Qxd5 {[%emt 0:00:23]} Qxf2 {[%emt 0:01:00]} 18. Qf5+ {[%emt 0:08:01]} Qxf5 {[%emt 0:00:08]} 19. gxf5 {[%emt 0:00:03]} Bg7 {[%emt 0:00:35]} 20. Rde1 {[%emt 0:01:29]} Kd7 {[%emt 0:05:23]} 21. Re2 {[%emt 0:13:56]} Re8 {[%emt 0:02:00]} 22. Rxe8 {[%emt 0:00:30]} Kxe8 {[%emt 0:00:05]} 23. b4 {[%emt 0:01:22]} Na4 {[%emt 0:01:53]} 24. Rg4 {[%emt 0:10:00]} Nc3 {[%emt 0:01:39]} 25. Kb2 {[%emt 0:04:35]} Kd7 {[%emt 0:01:15]} 26. Kb3 {[%emt 0:00:24]} b5 {[%emt 0:02:00]} 27. Bg1 {[%emt 0:01:42]} a6 {[%emt 0:06:57]} 28. Bd4 {[%emt 0:01:53]} Bxd4 {[%emt 0:00:08]} 29. Rxd4 {[%emt 0:00:04]} Ne2 {[%emt 0:00:11]} 30. Rd2 {[%emt 0:03:48]} Nf4 {[%emt 0:02:00]} 31. Kc3 {[%emt 0:04:17]} Nxh3 {[%emt 0:01:33]} 32. Kd4 {[%emt 0:02:12]} Nf4 {[%emt 0:03:04]} 33. Ke4 {[%emt 0:00:28]} Ke7 {[%emt 0:00:45]} 34. c4 {[%emt 0:00:33]} bxc4 {[%emt 0:01:31]} 35. Kd4 {[%emt 0:03:35]} h5 {[%emt 0:00:58]} 36. Kxc4 {[%emt 0:00:28]} c6 {[%emt 0:00:09]} 37. Kd4 {[%emt 0:00:43]} Kf6 {[%emt 0:02:42]} 38. Rc2 {[%emt 0:05:00]} h4 {[%emt 0:00:18]} 39. Ke4 {[%emt 0:04:26]} d5+ {[%emt 0:00:26]} 40. Ke3 {[%emt 0:00:04]} h3 {[%emt 0:01:15]} 41. Rxc6+ {[%emt 0:01:36]} Kxf5 {[%emt 0:00:05]} 42. Rxa6 {[%emt 0:01:07]} f6 {[%emt 0:00:30]} 43. Ra8 {[%emt 0:00:21]} g4 {[%emt 0:01:22]} 44. Kf2 {[%emt 0:02:06]} Nh5 {[%emt 0:03:16]} 45. Rh8 {[%emt 0:00:50]} Kg5 {[%emt 0:01:58]} 46. Rxh5+ {[%emt 0:00:39]} Kxh5 {[%emt 0:00:12]} 47. b5 {[%emt 0:00:11]} h2 {[%emt 0:01:46]} 48. Kg2 {[%emt 0:00:09]} d4 {[%emt 0:00:31]} 49. b6 {[%emt 0:00:20]} h1=Q+ {[%emt 0:01:50]} 50. Kxh1 {[%emt 0:00:04]} d3 {[%emt 0:00:05]} 51. b7 {[%emt 0:00:04]} d2 {[%emt 0:00:02]} 52. b8=Q {[%emt 0:00:08]} d1=Q+ {[%emt 0:00:08]} 53. Kg2 {[%emt 0:00:23]} Qe2+ {[%emt 0:00:28]} 54. Kg3 {[%emt 0:01:16]} Qf3+ {[%emt 0:02:20]} 55. Kh2 {[%emt 0:00:01]} Qf2+ {[%emt 0:00:11]} 56. Kh1 {[%emt 0:00:07]} Qxa2 {[%emt 0:00:22]} 57. Qh8+ {[%emt 0:00:51]} Kg6 {[%emt 0:00:16]} 58. Qe8+ {[%emt 0:00:09]} Qf7 {[%emt 0:00:10]} 59. Qa8 {[%emt 0:00:53]} Qe6 {[%emt 0:00:48]} 60. Qf8 {[%emt 0:00:37]} f5 {[%emt 0:00:45]} 61. Qb8 {[%emt 0:00:50]} Kg5 {[%emt 0:01:40]} 62. Qa7 {[%emt 0:00:25]} g3 {[%emt 0:01:26]} 63. Kg1 {[%emt 0:00:49]} Qe1+ {[%emt 0:02:34]} 64. Kg2 {[%emt 0:00:06]} Qf2+ {[%emt 0:00:14]} 0-1

[Event "2nd Bieszczady Chess-ch B 2022"]
[Site "Bystre"]
[Date "2022.07.24"]
[Round "9.4"]
[White "Warchol, Jacek"]
[Black "Sola, Wojciech"]
[Result "0-1"]
[ECO "B27"]
[WhiteElo "1785"]
[BlackElo "1780"]
[Annotator "NA RC COMBH"]
[PlyCount "132"]
[EventDate "2022.07.17"]
[EventCountry "POL"]
[SourceTitle "playchess.com"]
[Source "ChessBase"]
[SourceQuality "1"]
[TimeControl "5400+30"]

1. e4 {[%emt 0:00:19]} c5 2. Nf3 {[%emt 0:00:07]} g6 {[%emt 0:00:23]} 3. d4 {[%emt 0:00:12]} cxd4 {[%emt 0:00:07]} 4. Nxd4 {[%emt 0:00:02]} Bg7 {[%emt 0:00:09]} 5. Be3 {[%emt 0:00:17]} Nc6 {[%emt 0:00:28]} 6. Nxc6 {[%emt 0:00:50]} bxc6 {[%emt 0:00:11]} 7. Nc3 {[%emt 0:01:31]} d6 {[%emt 0:00:33]} 8. Qd2 {[%emt 0:00:42]} Qa5 {[%emt 0:01:30]} 9. Bd4 {[%emt 0:02:26]} Nf6 {[%emt 0:00:23]} 10. f3 {[%emt 0:03:36]} O-O {[%emt 0:00:25]} 11. a3 {[%emt 0:07:43]} Rb8 {[%emt 0:05:43]} 12. Nb1 {[%emt 0:01:14]} Qxd2+ {[%emt 0:07:19]} 13. Nxd2 {[%emt 0:00:07]} c5 {[%emt 0:00:10]} 14. Bc3 {[%emt 0:00:08]} Nd7 {[%emt 0:01:33]} 15. Bxg7 {[%emt 0:01:44]} Kxg7 {[%emt 0:00:09]} 16. O-O-O {[%emt 0:01:10]} Ne5 {[%emt 0:00:22]} 17. Nc4 {[%emt 0:01:39]} Nc6 {[%emt 0:01:01]} 18. Ne3 {[%emt 0:08:57]} Be6 {[%emt 0:02:12]} 19. Bc4 {[%emt 0:05:34]} Bxc4 {[%emt 0:00:19]} 20. Nxc4 {[%emt 0:00:01]} Rb7 {[%emt 0:01:19]} 21. Rhe1 {[%emt 0:01:41]} f6 {[%emt 0:01:53]} 22. c3 {[%emt 0:00:45]} Rfb8 {[%emt 0:01:26]} 23. Rd2 {[%emt 0:00:47]} g5 {[%emt 0:10:34]} 24. g3 {[%emt 0:01:12]} Ne5 {[%emt 0:01:16]} 25. Nxe5 {[%emt 0:00:34]} fxe5 {[%emt 0:00:08]} 26. Rf1 {[%emt 0:04:25]} Rg8 {[%emt 0:03:36]} 27. f4 {[%emt 0:02:20]} gxf4 {[%emt 0:02:12]} 28. gxf4 {[%emt 0:00:14]} Kf6 {[%emt 0:00:33]} 29. f5 {[%emt 0:07:41]} Rg4 {[%emt 0:01:17]} 30. Re2 {[%emt 0:02:42]} Rb8 {[%emt 0:00:17]} 31. Kc2 {[%emt 0:00:37]} a5 {[%emt 0:00:53]} 32. Rf3 {[%emt 0:03:46]} h5 {[%emt 0:00:32]} 33. Rg3 {[%emt 0:07:21]} Rxg3 {[%emt 0:02:17]} 34. hxg3 {[%emt 0:00:01]} c4 {[%emt 0:00:13]} 35. Kd1 {[%emt 0:05:59]} Rg8 {[%emt 0:02:52]} 36. Re3 {[%emt 0:02:49]} Rg4 {[%emt 0:02:47]} 37. Kc2 {[%emt 0:05:40]} a4 {[%emt 0:02:05]} 38. Kd2 {[%emt 0:00:46]} h4 {[%emt 0:01:44]} 39. gxh4 {[%emt 0:00:24]} Rxh4 {[%emt 0:00:10]} 40. Re2 {[%emt 0:00:09]} Kg5 {[%emt 0:10:03]} 41. Rg2+ {[%emt 0:00:03]} Rg4 {[%emt 0:00:14]} 42. Rh2 {[%emt 0:04:31]} Rxe4 {[%emt 0:02:25]} 43. Rh8 {[%emt 0:00:12]} Kxf5 {[%emt 0:00:44]} 44. Rf8+ {[%emt 0:01:16]} Ke6 {[%emt 0:00:45]} 45. Ra8 {[%emt 0:00:07]} Rh4 {[%emt 0:00:23]} 46. Rxa4 {[%emt 0:00:19]} Rh2+ {[%emt 0:00:15]} 47. Ke3 {[%emt 0:00:28]} d5 {[%emt 0:00:19]} 48. Rb4 {[%emt 0:00:10]} Kf5 {[%emt 0:00:23]} 49. a4 {[%emt 0:02:03]} Rh3+ {[%emt 0:02:54]} 50. Kf2 {[%emt 0:02:15]} Rh8 {[%emt 0:00:45]} 51. a5 {[%emt 0:02:57]} Ra8 {[%emt 0:00:03]} 52. Rb5 {[%emt 0:01:21]} e6 {[%emt 0:00:25]} 53. Ke3 {[%emt 0:00:44]} Ra6 {[%emt 0:02:06]} 54. Rc5 {[%emt 0:07:28]} Kf6 {[%emt 0:01:10]} 55. Rb5 {[%emt 0:00:55]} Ke7 {[%emt 0:00:19]} 56. Kd2 {[%emt 0:00:25]} Kd6 {[%emt 0:00:08]} 57. Kc2 {[%emt 0:01:21]} Kc6 {[%emt 0:00:47]} 58. Rb8 {[%emt 0:00:09]} Rxa5 {[%emt 0:00:25]} 59. b3 {[%emt 0:00:33]} Ra2+ {[%emt 0:01:45]} 60. Kd1 {[%emt 0:01:46]} cxb3 {[%emt 0:01:38]} 61. Rxb3 {[%emt 0:00:01]} Kc5 {[%emt 0:01:08]} 62. Rb8 {[%emt 0:01:04]} Kc4 {[%emt 0:00:28]} 63. Rc8+ {[%emt 0:00:09]} Kd3 {[%emt 0:01:08]} 64. Ke1 {[%emt 0:00:35]} Rc2 {[%emt 0:00:36]} 65. Rc6 {[%emt 0:00:20]} Rxc3 {[%emt 0:00:11]} 66. Rxe6 {[%emt 0:00:02]} e4 {[%emt 0:00:12]} 0-1

[Event "2nd Bieszczady Chess-ch B 2022"]
[Site "Bystre"]
[Date "2022.07.24"]
[Round "9.5"]
[White "Panczuk, Grzegorz"]
[Black "Polak, Sylwia"]
[Result "1-0"]
[ECO "D43"]
[WhiteElo "1684"]
[BlackElo "1574"]
[Annotator "NA RC COMBH"]
[PlyCount "91"]
[EventDate "2022.07.17"]
[EventCountry "POL"]
[SourceTitle "playchess.com"]
[Source "ChessBase"]
[SourceQuality "1"]
[TimeControl "5400+30"]

1. d4 {[%emt 0:00:03]} d5 {[%emt 0:00:48]} 2. c4 {[%emt 0:00:04]} c6 {[%emt 0:00:04]} 3. Nc3 {[%emt 0:00:04]} Nf6 {[%emt 0:00:05]} 4. Nf3 {[%emt 0:00:04]} e6 {[%emt 0:00:04]} 5. cxd5 {[%emt 0:00:05]} exd5 {[%emt 0:00:31]} 6. Bg5 {[%emt 0:00:00]} Be7 {[%emt 0:02:38]} 7. e3 {[%emt 0:00:21]} Bf5 {[%emt 0:01:49]} 8. h3 {[%emt 0:07:53]} Nbd7 {[%emt 0:03:01]} 9. Bf4 {[%emt 0:04:50]} h6 {[%emt 0:08:12]} 10. Bd3 {[%emt 0:08:44]} Bxd3 {[%emt 0:01:13]} 11. Qxd3 {[%emt 0:00:58]} a5 {[%emt 0:12:30]} 12. Ne5 {[%emt 0:06:03]} Rc8 {[%emt 0:10:33]} 13. g4 {[%emt 0:10:21]} b5 {[%emt 0:14:59]} 14. Rg1 {[%emt 0:10:16]} Bb4 {[%emt 0:06:39]} 15. g5 {[%emt 0:23:51]} hxg5 {[%emt 0:01:02]} 16. Rxg5 {[%emt 0:02:33]} Bf8 {[%emt 0:08:06]} 17. Ke2 {[%emt 0:03:12]} b4 {[%emt 0:07:29]} 18. Na4 {[%emt 0:03:19]} Ne4 {[%emt 0:00:59]} 19. Rg2 {[%emt 0:01:45]} Nxe5 {[%emt 0:08:03]} 20. Bxe5 {[%emt 0:02:27]} Qh4 {[%emt 0:01:40]} 21. f3 {[%emt 0:03:28]} Nd6 {[%emt 0:02:30]} 22. Qa6 {[%emt 0:03:43]} Qd8 {[%emt 0:00:33]} 23. Rc1 {[%emt 0:00:48]} Nc4 {[%emt 0:01:02]} 24. b3 {[%emt 0:02:14]} Nxe5 {[%emt 0:00:46]} 25. dxe5 {[%emt 0:00:05]} Qc7 {[%emt 0:00:23]} 26. Nb6 {[%emt 0:01:22]} Rd8 {[%emt 0:00:08]} 27. f4 {[%emt 0:00:21]} Rxh3 {[%emt 0:01:02]} 28. Na4 {[%emt 0:04:05]} d4 {[%emt 0:03:46]} 29. Rxc6 {[%emt 0:00:41]} Rxe3+ {[%emt 0:01:33]} 30. Kd2 {[%emt 0:00:07]} Qd7 {[%emt 0:00:07]} 31. Qc4 {[%emt 0:01:26]} d3 {[%emt 0:01:41]} 32. Kxe3 {[%emt 0:00:13]} d2 {[%emt 0:01:01]} 33. Nb2 {[%emt 0:00:08]} Qh3+ {[%emt 0:00:57]} 34. Kf2 {[%emt 0:00:23]} Qh4+ {[%emt 0:00:22]} 35. Kf3 {[%emt 0:00:31]} Qh3+ {[%emt 0:01:11]} 36. Rg3 {[%emt 0:00:09]} Qh1+ {[%emt 0:00:23]} 37. Ke3 {[%emt 0:00:50]} Qe1+ {[%emt 0:00:19]} 38. Kf3 {[%emt 0:00:09]} Qh1+ {[%emt 0:00:04]} 39. Kg4 {[%emt 0:00:52]} g6 {[%emt 0:00:12]} 40. Rxg6 {[%emt 0:00:05]} d1=Q+ 41. Nxd1 {[%emt 0:00:06]} Qxd1+ {[%emt 0:01:06]} 42. Kg5 {[%emt 0:00:40]} fxg6 {[%emt 0:01:00]} 43. Qe6+ {[%emt 0:00:46]} Be7+ {[%emt 0:00:20]} 44. Kxg6 {[%emt 0:00:04]} Qd5 {[%emt 0:01:00]} 45. Kf5 {[%emt 0:02:08]} Qd3+ {[%emt 0:00:28]} 46. Rxd3 {[%emt 0:00:07]} 1-0

[Event "2nd Bieszczady Chess-ch B 2022"]
[Site "Bystre"]
[Date "2022.07.24"]
[Round "9.6"]
[White "Zajac, Karol"]
[Black "Sternik, Piotr"]
[Result "1-0"]
[ECO "B37"]
[WhiteElo "1579"]
[BlackElo "1434"]
[Annotator "NA COMBH RC"]
[PlyCount "63"]
[EventDate "2022.07.17"]
[EventCountry "POL"]
[SourceTitle "playchess.com"]
[Source "ChessBase"]
[SourceQuality "1"]
[TimeControl "5400+30"]

1. e4 {[%emt 0:03:04]} c5 {[%emt 0:00:15]} 2. Nf3 {[%emt 0:00:27]} Nc6 {[%emt 0:00:06]} 3. d4 {[%emt 0:00:13]} cxd4 {[%emt 0:00:05]} 4. Nxd4 {[%emt 0:00:04]} g6 {[%emt 0:00:27]} 5. c4 {[%emt 0:00:23]} Bg7 {[%emt 0:00:05]} 6. Nc2 {[%emt 0:03:49]} Nf6 {[%emt 0:00:13]} 7. Nc3 {[%emt 0:00:06]} d6 {[%emt 0:00:07]} 8. Be2 {[%emt 0:00:18]} Be6 {[%emt 0:00:07]} 9. O-O {[%emt 0:03:08]} O-O {[%emt 0:00:22]} 10. Be3 {[%emt 0:10:54]} Nd7 {[%emt 0:05:06]} 11. Rc1 {[%emt 0:06:24]} Nb6 {[%emt 0:14:14]} 12. Na3 {[%emt 0:02:46]} Rc8 {[%emt 0:04:40]} 13. b3 {[%emt 0:01:35]} f5 {[%emt 0:03:58]} 14. exf5 {[%emt 0:02:39]} Bxf5 {[%emt 0:00:06]} 15. Nab5 {[%emt 0:04:42]} a6 {[%emt 0:16:08]} 16. Nd4 {[%emt 0:02:36]} Nxd4 {[%emt 0:02:02]} 17. Bxd4 {[%emt 0:00:08]} Bh6 {[%emt 0:02:24]} 18. f4 {[%emt 0:11:42]} Be6 {[%emt 0:04:59]} 19. Be3 {[%emt 0:00:41]} Bg7 {[%emt 0:02:18]} 20. Bf3 {[%emt 0:03:46]} Rb8 {[%emt 0:02:26]} 21. Qd2 {[%emt 0:02:11]} Nc8 {[%emt 0:08:28]} 22. Ne4 {[%emt 0:08:45]} Bd7 {[%emt 0:09:16]} 23. c5 {[%emt 0:05:08]} Bc6 {[%emt 0:04:45]} 24. Rfd1 {[%emt 0:07:12]} Bxe4 {[%emt 0:01:35]} 25. Bxe4 {[%emt 0:00:02]} Qe8 {[%emt 0:00:42]} 26. Bxb7 {[%emt 0:01:21]} dxc5 {[%emt 0:14:18]} 27. Bxa6 {[%emt 0:01:05]} Nd6 {[%emt 0:00:12]} 28. Rxc5 {[%emt 0:00:57]} Nf5 {[%emt 0:01:32]} 29. Bf2 {[%emt 0:01:44]} Ra8 {[%emt 0:00:34]} 30. Bc4+ {[%emt 0:00:40]} Kh8 {[%emt 0:00:06]} 31. Be6 {[%emt 0:00:40]} Nd6 {[%emt 0:01:14] 3.90} 32. Bd4 {[%emt 0:03:38]} 1-0

[Event "2nd Bieszczady Chess-ch B 2022"]
[Site "Bystre"]
[Date "2022.07.24"]
[Round "9.7"]
[White "Kucza, Arkadiusz"]
[Black "Tymrakiewicz, Marianna"]
[Result "1/2-1/2"]
[ECO "A08"]
[WhiteElo "1500"]
[BlackElo "1819"]
[Annotator "NA RC COMBH"]
[PlyCount "44"]
[EventDate "2022.07.17"]
[EventCountry "POL"]
[SourceTitle "playchess.com"]
[Source "ChessBase"]
[SourceQuality "1"]
[TimeControl "5400+30"]

1. Nf3 {[%emt 0:00:03]} d5 {[%emt 0:00:29]} 2. g3 {[%emt 0:00:07]} c5 {[%emt 0:00:44]} 3. Bg2 {[%emt 0:00:06]} Nc6 {[%emt 0:00:51]} 4. d3 {[%emt 0:00:05]} e5 {[%emt 0:04:35]} 5. O-O {[%emt 0:00:07]} Nf6 {[%emt 0:00:31]} 6. Nbd2 {[%emt 0:00:06]} Be7 {[%emt 0:01:03]} 7. e4 {[%emt 0:01:36]} dxe4 {[%emt 0:02:09]} 8. Nxe4 {[%emt 0:00:12]} Nxe4 {[%emt 0:00:37]} 9. dxe4 {[%emt 0:00:04]} Qc7 {[%emt 0:00:25]} 10. c3 {[%emt 0:00:21]} O-O {[%emt 0:00:06]} 11. Qc2 {[%emt 0:01:15]} b6 {[%emt 0:04:08]} 12. Be3 {[%emt 0:01:16]} Ba6 {[%emt 0:00:41]} 13. Rfd1 {[%emt 0:00:33]} Rad8 {[%emt 0:00:19]} 14. Bf1 {[%emt 0:01:51]} Bxf1 {[%emt 0:00:30]} 15. Kxf1 {[%emt 0:00:06]} Qc8 {[%emt 0:02:24]} 16. Kg2 {[%emt 0:00:44]} Qe6 {[%emt 0:02:43]} 17. b3 {[%emt 0:02:11]} h6 {[%emt 0:02:16]} 18. Rxd8 {[%emt 0:01:24]} Rxd8 {[%emt 0:03:48]} 19. Rd1 {[%emt 0:01:41]} Bd6 {[%emt 0:05:19]} 20. Rd2 {[%emt 0:03:42]} Bb8 {[%emt 0:09:21]} 21. Rxd8+ {[%emt 0:01:07]} Nxd8 {[%emt 0:00:02]} 22. Qd3 {[%emt 0:00:09]} Nc6 $14 {[%emt 0:05:44]} 1/2-1/2